Cogmind - Beta 16 @@@ ROGUE MODE // 2025.11.20 @ 00:17:09 Player: Demo Result: Destroyed by H-71 Marshal with Heavy Mass Driver Performance ------------- Evolutions (6) 3000 Regions Visited (16) 3200 Robots Destroyed (198) 990 Value Destroyed (7197) 7197 Prototype IDs (24) 480 Alien Tech Used (0) 0 Bonus (5400) 5400 TOTAL SCORE: 20267 Bonus ------- Triggered High Security 500 High Alert Combat Kills 1460 Follower Combat Kills 2098 Registered with UFD 300 Met Optimus in HQ 500 Met Warlord at Base 500 MAIN.C Attacked Warlord 500 Friendly Fire -458 Cogmind --------- Core Integrity 0/1150 Matter 260/300 Energy 99/100 System Corruption 10% Temperature Cool (0) Movement Core (50) Location -4/Factory Parts ------- > --- POWER (2) -------- (None) > --- PROPULSION (2) --- Enhanced Armored Leg Shield Leg > --- UTILITY (9) ------ Advanced Hacking Suite > --- WEAPON (6) ------- Plasma Lance > --- INVENTORY (5) ---- Advanced VSS Leg Advanced Cryofiber Web Experimental Actuator Array Improved Plasma Cutter Shock Maul Peak State ------------ > --- POWER ------------ Neutrino Core > --- PROPULSION ------- Overtuned Huge Scrapsphere > --- UTILITY ---------- Scrap Suit Advanced Heat Sink Experimental Coolant Injector Improved Target Analyzer Heart of Steel > --- WEAPON ----------- Vortex Rifle Vortex Rifle Vortex Rail Vortex Rail Vortex Catalyst Activator > --- INVENTORY -------- Experimental Actuator Array Experimental Transmission Jammer Minesniffer Drone Bay Neutron Missile Launcher CPS Tube [Rating: 125] Favorites ----------- Power Neutrino Core Engine Light Angular Momentum Engine Power Core Neutrino Core Reactor Light Antimatter Reactor Propulsion Overtuned Huge Scrapsphere Treads Light Treads Leg Enhanced Armored Leg Wheel Overtuned Huge Scrapsphere Hover Unit Gyrokinetic Inverter Flight Unit VTOL Module Utility Advanced Heat Sink Device Advanced Heat Sink Storage Large Storage Unit Processor Improved Target Analyzer Hackware Advanced Hacking Suite Weapon Improved Spread Laser Energy Gun Improved Spread Laser Energy Cannon Heavy Plasma Cannon Ballistic Gun Precision Assault Rifle Ballistic Cannon Bore Cannon Launcher Vortex Catalyst Activator Special Weapon CPS Tube Impact Weapon Shock Maul Slashing Weapon Companion Sword Piercing Weapon Lance Build | -11 -10 -10 -10 -9 -9 -6 -6 -6 -6 -5 -5 -5 -5 -5 -4 -4 ------- Run | Yrd Mat Min Sub Rec Scr Fac Low Low Zio Pro Fac Upp Upp War Pro Fac Slots Evolved 12 | . . . . . . 8 . . . . 2 . . . . 2 Power 1 | . . . . . . . . . . . . . . . . 1 Propulsion . | . . . . . . . . . . . . . . . . . Utility 7 | . . . . . . 4 . . . . 2 . . . . 1 Weapon 4 | . . . . . . 4 . . . . . . . . . . Parts Attached 153 | 8 1 . 2 . 3 29 6 3 2 . 36 6 3 7 3 44 Power 18 | 1 . . . . . 3 2 . . . 4 2 . . . 6 Engine 7 | 1 . . . . . 2 . . . . 2 1 . . . 1 Core 9 | . . . . . . 1 1 . . . 2 1 . . . 4 Reactor 2 | . . . . . . . 1 . . . . . . . . 1 Propulsion 25 | 3 . . . . 1 2 . 1 . . 5 . . . . 13 Treads 3 | 2 . . . . . . . . . . 1 . . . . . Leg 5 | . . . . . . . . . . . 1 . . . . 4 Wheel 13 | 1 . . . . 1 2 . 1 . . 1 . . . . 7 Hover 3 | . . . . . . . . . . . 2 . . . . 1 Flight 1 | . . . . . . . . . . . . . . . . 1 Utility 54 | 2 . . . . 1 8 2 1 1 . 19 3 2 2 3 10 Device 39 | 1 . . . . . 7 2 1 1 . 16 3 1 2 1 4 Storage 4 | 1 . . . . 1 . . . . . . . 1 . 1 . Processor 9 | . . . . . . 1 . . . . 3 . . . 1 4 Hackware 2 | . . . . . . . . . . . . . . . . 2 Protection . | . . . . . . . . . . . . . . . . . Artifact . | . . . . . . . . . . . . . . . . . Weapon 56 | 2 1 . 2 . 1 16 2 1 1 . 8 1 1 5 . 15 Energy Gun 28 | 1 . . . . . 10 1 1 1 . 4 . . 4 . 6 Energy Cannon 6 | . . . 1 . . . . . . . . . . . . 5 Ballistic Gun 7 | 1 1 . 1 . . 2 1 . . . . . . . . 1 Ballistic Cannon 1 | . . . . . . . . . . . . 1 . . . . Launcher 7 | . . . . . . 2 . . . . 3 . 1 1 . . Special Weapon 2 | . . . . . . 2 . . . . . . . . . . Impact Weapon 1 | . . . . . . . . . . . . . . . . 1 Slashing Weapon 2 | . . . . . 1 . . . . . . . . . . 1 Piercing Weapon 2 | . . . . . . . . . . . 1 . . . . 1 Special Melee Weapon . | . . . . . . . . . . . . . . . . . Unidentified Prototypes 24 | . . . . . 1 2 . . 2 . 7 2 . 4 . 6 Parts Lost 60 | . . 3 4 . . 1 4 1 . . 13 5 1 . . 28 Power 12 | . . 1 . . . . 1 . . . 4 1 . . . 5 Propulsion 9 | . . 1 2 . . . . . . . 1 . . . . 5 Utility 10 | . . . 1 . . . . . . . 3 1 1 . . 4 Weapon 29 | . . 1 1 . . 1 3 1 . . 5 3 . . . 14 Highest Loss Streak 10 | . . 2 3 . . 1 2 1 . . 4 3 1 . . 10 To Critical Strikes 2 | . . . . . . . . . . . . . . . . 2 Average Backups 8 | 1 2 2 4 5 8 11 11 12 12 12 8 3 4 5 5 12 Power . | . . . 1 1 . . . 1 1 1 . . . . . . Propulsion . | . 1 . . . . 1 1 1 1 1 . . . . . . Utility 4 | . . . . . . 4 6 7 7 7 3 2 2 3 3 5 Weapon 2 | . 1 1 2 4 5 4 2 2 2 2 1 1 . 1 1 3 Tool/Special . | . . . . . . . . . . . . . . . . . Unused Backups 26 | . . . 2 . . 4 . . 1 . 9 . . . . 10 Power 2 | . . . . . . . . . . . 1 . . . . 1 Propulsion 2 | . . . . . . 1 . . . . 1 . . . . . Utility 15 | . . . 1 . . 2 . . 1 . 5 . . . . 6 Weapon 4 | . . . 1 . . 1 . . . . 1 . . . . 1 Tool/Special 3 | . . . . . . . . . . . 1 . . . . 2 Average Slot Usage (%) 67 | . 100 91 83 . 17 85 88 91 72 66 66 47 51 64 77 65 Engine 1 | . 14 6 . . . 4 1 . . . 1 1 . . . . Core 2 | . . . . . . . 2 . . . 1 1 5 5 5 5 Reactor 1 | . . . . . . . 1 6 6 6 1 . . . . . Wheel 7 | . 14 14 14 . 8 11 13 12 6 6 4 5 5 5 5 5 Device 20 | . 14 14 14 . . 21 22 25 26 26 27 22 22 22 22 15 Storage 4 | . 14 14 13 . 8 6 6 6 6 6 3 . . . 2 3 Processor 3 | . . . . . . . . . . . 3 5 5 5 10 11 Energy Gun 15 | . 14 2 . . . 28 27 26 21 20 15 . . 16 23 11 Energy Cannon 1 | . . . 4 . . . . . . . 1 5 5 1 . 5 Ballistic Gun 3 | . 14 25 22 . . 6 10 12 4 . . . . . . . Peak Build Rating 125 | 9 9 9 10 1 7 65 70 73 87 84 107 89 89 125 125 118 Average Rating 69 | 6 9 8 8 1 4 55 66 67 79 83 84 75 81 112 110 78 On Entrance 52 | . 9 9 8 1 1 7 64 70 73 84 82 89 82 82 125 112 Avg Prop Armor Cover (%) 22 | 16 13 14 16 . . . . . . . 16 . . . . 32 Naked Turns 458 | . . . 1 147 215 . . . . . 26 . . . . 69 Heaviest Build 116 | 15 15 14 15 . 20 58 67 67 67 67 84 48 58 84 114 116 Greatest Support 50 | 40 16 16 16 3 10 18 16 20 20 20 50 20 20 20 20 32 Greatest Overweight (x) 26 | . . . . . 1 4 4 4 3 3 4 2 2 4 5 26 Average Overweight (x) 2 | . . . . . . 2 3 3 3 3 2 1 2 3 3 2 Largest Inventory Capacity 20 | 8 8 8 8 5 15 15 15 15 15 15 15 5 5 5 20 20 Average Capacity 11 | 7 8 8 7 5 11 15 15 15 15 15 11 5 5 5 11 16 Most Carried 20 | 2 3 3 6 5 15 15 15 15 15 15 15 5 5 5 6 20 Average Carried 10 | 1 2 2 4 5 10 14 14 14 14 15 11 4 4 5 5 13 Final Capacity 20 | 8 8 8 5 5 15 15 15 15 15 15 5 5 5 5 20 5 Final Carried 15 | 2 3 3 5 5 15 15 15 15 15 15 5 4 5 5 6 5 Scrap Suit Usage (%) 40 | . . . . . . 58 39 59 66 100 71 1 1 11 100 36 Parts Cannibalized 14 | . . . . . . 6 . 2 1 . 4 . . . . 1 Class Distribution -------------------- 37% | Scavenger-Scrapper 24% | Scavenger-Executioner 19% | Mutant 13% | Scavenger-Mutant 4% | Scavenger-Gunner Dominant Class ---------------- Mutant | -10/Materials Mutant | -10/Mines Mutant | -10/Subcaves Mutant | -9/Recycling Mutant | -9/Scraptown Scavenger-Scrapper | -6/Factory Scavenger-Scrapper | -6/Lower Caves Scavenger-Scrapper | -6/Lower Caves Scavenger-Scrapper | -6/Zion Scavenger-Scrapper | -5/Proximity Caves Scavenger-Executioner | -5/Factory Scavenger-Mutant | -5/Upper Caves Scavenger-Mutant | -5/Upper Caves Scavenger-Executioner | -5/Warlord Scavenger-Executioner | -4/Proximity Caves Scavenger-Executioner | -4/Factory Resources | -11 -10 -10 -10 -9 -9 -6 -6 -6 -6 -5 -5 -5 -5 -5 -4 -4 ----------- Run | Yrd Mat Min Sub Rec Scr Fac Low Low Zio Pro Fac Upp Upp War Pro Fac Matter Collected 6501 | 301 36 89 20 . 10 914 681 612 30 20 1039 529 560 750 190 720 Remotely . | . . . . . . . . . . . . . . . . . Salvage Created 8589 | 131 100 185 54 . . 769 450 167 . 151 2534 547 451 . . 3050 Parts 346 | 14 13 14 4 . . 17 16 5 . 1 111 14 9 . 2 126 Haulers Intercepted 6 | . . . . . . 1 . . . . 2 1 . . . 2 Recyclers Shooed 4 | . 1 . . . . . . . . . 1 . . . . 2 Parts Field Recycled . | . . . . . . . . . . . . . . . . . Retrieved Matter . | . . . . . . . . . . . . . . . . . Parts Self-Destructed 58 | . . . 3 . . . 12 6 . 13 . 17 4 . 3 . Prevented . | . . . . . . . . . . . . . . . . . Parts Restored . | . . . . . . . . . . . . . . . . . Kills | -11 -10 -10 -10 -9 -9 -6 -6 -6 -6 -5 -5 -5 -5 -5 -4 -4 ------- Run | Yrd Mat Min Sub Rec Scr Fac Low Low Zio Pro Fac Upp Upp War Pro Fac Combat Hostiles Destroyed 127 | . 6 6 1 . . 13 9 1 . 2 40 9 5 . 3 32 Melee 3 | . . . . . . . . . . . . . . . . 3 Guns 64 | . 6 6 1 . . 9 9 1 . 2 21 . . . . 9 Cannons 11 | . . . . . . . . . . . 1 3 . . . 7 AOE 43 | . . . . . . 3 . . . . 17 5 5 . 3 10 Classes Destroyed 23 | 2 2 . 1 . . 7 1 2 . 1 4 . . . . 3 Worker 18 | . . . . . . 1 . . . . 5 . . . . 12 Builder 17 | . . . . . . . . . . . 5 . . . . 12 Tunneler 4 | 4 . . . . . . . . . . . . . . . . Hauler 6 | . . . . . . 1 . . . . 2 1 . . . 2 Recycler 13 | 1 . . . . . . . . . . 2 . . . . 10 Mechanic 4 | . . . . . . . . . . . 3 . . . . 1 Operator 3 | . . . . . . 1 . . . . . . . . . 2 Watcher 3 | . . . . . . . . . . . . . . . . 3 Swarmer 32 | . 5 2 . . . . 2 . . . 13 1 . . 3 6 Cutter 1 | . . . . . . . . . . . . . . . . 1 Saboteur 2 | . . . . . . . . . . . 1 . . . . 1 Grunt 58 | . 1 4 . . . 9 7 . . 1 16 6 5 . . 9 Brawler 2 | . . . . . . . . . . 1 . 1 . . . . Duelist 3 | . . . . . . 1 . . . . 2 . . . . . Sentry 3 | . . . . . . 1 . . . . . 1 . . . 1 Specialist 3 | . . . . . . . . . . . 1 . . . . 2 Hunter 7 | . . . . . . . . 1 . . 2 . . . . 4 Programmer 14 | . . . . . . 2 . . . . 5 . . . . 7 Behemoth 1 | . . . . . . . . . . . . . . . . 1 Subdweller 1 | . . . 1 . . . . . . . . . . . . . Scrapoid 3 | . . . . . . 1 . . . . 1 . . . . 1 Decomposer 8 | . . . . . . . 3 2 . . . 1 2 . . . Samaritan 3 | . . . . . . . . 1 . . . . 2 . . . Tinkerer 1 | . . . . . . . 1 . . . . . . . . . Best Kill Streak 13 | 5 3 2 1 . . 5 5 1 . 1 8 4 5 . 3 13 Combat Bots Only 7 | . 3 2 1 . . 4 5 1 . 1 7 4 5 . 3 4 Max Kills in Single Turn 5 | 1 2 1 1 . . 2 1 1 . 1 5 2 4 . 3 5 Gunslinging 1 | . 1 . . . . . . . . . 1 . . . . . Exploded 4 | . . . . . . 1 . . . . 3 2 4 . 3 2 Melee 1 | . . . . . . . . . . . . . . . . 1 Uniques/NPCs Destroyed . | . . . . . . . . . . . . . . . . . Combat | -11 -10 -10 -10 -9 -9 -6 -6 -6 -6 -5 -5 -5 -5 -5 -4 -4 -------- Run | Yrd Mat Min Sub Rec Scr Fac Low Low Zio Pro Fac Upp Upp War Pro Fac Hostile Shots Fired 973 | . 33 60 46 . . 88 59 16 . . 281 59 11 . 5 315 Missed 314 | . 12 12 17 . . 26 14 4 . . 104 18 7 . 2 98 Hits 659 | . 21 48 29 . . 62 45 12 . . 177 41 4 . 3 217 Melee 15 | . . . . . . . . . . . . . . . . 15 Projectile 644 | . 21 48 29 . . 62 45 12 . . 177 41 4 . 3 202 AOE 2 | . . . . . . . . . . . . . . . . 2 Critical Strikes 29 | . . . . . . 2 2 2 . 1 7 2 . . . 13 Part Disruptions 1 | . . . . . . . . . . . . . . . . 1 Damage Taken 12000 | . 175 512 250 . . 880 800 201 . 112 3659 769 114 11 138 4379 Core 2331 | . 23 120 94 . . 94 55 17 . 57 696 24 . . . 1151 Absorbed by Shields 85 | . . . . . . . . . . . . . . . 24 61 Regen/Repaired (Parts) 139 | . . . . . . 56 . 20 2 . 20 . . 31 . 10 Core Remaining (%) 51 | 100 . . . . 5 . . . . 73 . . . . 28 . Volleys Fired 349 | 7 12 26 9 . . 48 35 21 . 6 73 17 14 . 1 80 Largest 6 | 2 2 2 2 . . 6 6 3 . 1 5 2 2 . 1 6 Hottest 504 | 70 70 70 80 . . 418 418 219 . 250 409 171 138 . 20 504 Shots Fired 793 | 14 24 48 15 . . 147 104 28 . 6 142 19 15 . 1 230 Gun 620 | 14 24 48 12 . . 131 104 28 . 6 111 3 . . . 139 Cannon 122 | . . . 3 . . . . . . . 16 12 13 . . 78 Launcher 47 | . . . . . . 12 . . . . 15 4 2 . 1 13 Special 4 | . . . . . . 4 . . . . . . . . . . Kinetic 135 | 7 12 42 12 . . 29 32 . . . . . 1 . . . Thermal 520 | 7 12 6 3 . . 102 72 28 . 6 121 15 12 . . 136 Explosive 28 | . . . . . . 10 . . . . 6 4 2 . . 6 Electromagnetic 64 | . . . . . . 2 . . . . 15 . . . . 47 Entropic 42 | . . . . . . . . . . . . . . . 1 41 Robot Hit Streak 17 | 3 3 9 6 . . 15 14 11 . 4 17 6 12 . . 13 Robot Miss Streak 12 | 1 3 3 1 . . 4 7 8 . 12 7 1 2 . 1 6 Penetration Max . | . . . . . . . . . . . . . . . . . Secondary Targets 10 | . 1 2 . . . 1 3 . . . 2 . . . . 1 Max Gunslinging Chain 1 | . 1 1 . . . 1 1 . . . 1 . . . . 1 Shots Hit Robots 492 | 9 10 29 10 . . 86 73 23 . 6 88 14 12 . . 132 Core Hits 411 | 6 7 13 2 . . 62 56 13 . 6 114 14 14 . 1 103 Critical Kills 3 | . . . . . . . 1 . . . . . 1 . . 1 Critical Parts Destroyed 10 | . . 1 . . . 1 . . . . . . . . . 8 Critical Strikes 36 | . . 2 . . . 4 3 . . . 3 2 1 . . 21 Burn 21 | . . 1 . . . 3 2 . . . 3 2 . . . 10 Meltdown 1 | . . . . . . . . . . . . . 1 . . . Destroy 6 | . . 1 . . . 1 1 . . . . . . . . 3 Corrupt 2 | . . . . . . . . . . . . . . . . 2 Smash 5 | . . . . . . . . . . . . . . . . 5 Detonate 1 | . . . . . . . . . . . . . . . . 1 Melee Attacks 31 | . . . . . . 5 . . . . 8 . . . . 18 Impact 16 | . . . . . . . . . . . . . . . . 16 Slashing 7 | . . . . . . 5 . . . . . . . . . 2 Piercing 8 | . . . . . . . . . . . 8 . . . . . Sneak Attacks 4 | . . . . . . 1 . . . . . . . . . 3 Combat Hostiles . | . . . . . . . . . . . . . . . . . Follow-up Attacks . | . . . . . . . . . . . . . . . . . Damage Inflicted 27892 | 116 139 300 79 . . 2374 1407 489 . 288 7695 1351 975 . 825 11854 Guns 11336 | 116 139 300 79 . . 1665 1407 489 . 288 4032 48 . . . 2773 Cannons 2301 | . . . . . . . . . . . 233 321 318 . . 1429 Explosions 13552 | . . . . . . 641 . . . . 3387 982 657 . 825 7060 Melee 654 | . . . . . . 68 . . . . . . . . . 586 Ramming 49 | . . . . . . . . . . . 43 . . . . 6 Kinetic 1054 | 79 75 237 79 . . 188 396 . . . . . . . . . Thermal 12174 | 37 64 63 . . . 1477 1011 489 . 288 4902 369 318 . . 3156 Explosive 7498 | . . . . . . 641 . . . . 2096 982 657 . . 3122 Electromagnetic 1381 | . . . . . . . . . . . 654 . . . . 727 Impact 508 | . . . . . . . . . . . . . . . . 508 Slashing 146 | . . . . . . 68 . . . . . . . . . 78 Piercing . | . . . . . . . . . . . . . . . . . Entropic 5082 | . . . . . . . . . . . . . . . 825 4257 Highest Corruption 10 | . . . . . . . . . . . 3 3 3 2 . 10 Average Corruption 3 | . . . . . . . . . . . 2 3 2 2 . 5 Corruption Purged 1 | . . . . . . . . . . . . . 1 . . . Corruption Blocked . | . . . . . . . . . . . . . . . . . Effects 65 | . . . . . . . . . . . 13 14 10 1 . 27 Message Errors 16 | . . . . . . . . . . . 3 3 5 . . 5 Matter Fused 15 | . . . . . . . . . . . 3 3 3 1 . 5 Heat Flow Errors 10 | . . . . . . . . . . . 3 2 1 . . 4 Energy Discharges 5 | . . . . . . . . . . . 1 . . . . 4 Parts Rejected 1 | . . . . . . . . . . . . . . . . 1 Parts Fused 1 | . . . . . . . . . . . . 1 . . . . Data Loss (minor) 13 | . . . . . . . . . . . 3 4 . . . 6 Alerts 1 | . . . . . . . . . . . . . 1 . . . Weapon Failures 3 | . . . . . . . . . . . . 1 . . . 2 Overload Shots . | . . . . . . . . . . . . . . . . . Overflow Damage 1478 | . . . . . . 38 . . . . 108 24 74 . 173 1061 Projectiles 168 | . . . . . . . . . . . 22 17 74 . . 55 Explosions 831 | . . . . . . . . . . . 65 7 . . 173 586 Melee 479 | . . . . . . 38 . . . . 21 . . . . 420 Knockbacks 1 | . . . . . . . . . . . . . . . . 1 Impact 1 | . . . . . . . . . . . . . . . . 1 Kinetic . | . . . . . . . . . . . . . . . . . Secondary . | . . . . . . . . . . . . . . . . . Self-Inflicted Damage 316 | . . . . . . 18 . . . . 156 . 41 . 99 2 Shots 8 | . . . . . . 2 . . . . 4 . 1 . 1 . Rammed 3 | . . . . . . . . . . . 1 . . . . 2 Targets Rammed 3 | . . . . . . . . . . . 1 . . . . 2 Kicked . | . . . . . . . . . . . . . . . . . Crushed . | . . . . . . . . . . . . . . . . . Highest Temperature 202 | . 4 89 . . . 200 200 21 . 5 195 202 156 . . 197 Average Temperature 91 | . 3 29 . . . 111 119 13 . 3 61 60 55 . . 105 Received Heat Transfer 1988 | . 6 204 72 . . 248 180 27 . 45 462 300 30 . . 414 Effects 3 | . . . . . . . 3 . . . . . . . . . Energy Bleed 1 | . . . . . . . 1 . . . . . . . . . Interference 2 | . . . . . . . 2 . . . . . . . . . Siege Activations . | . . . . . . . . . . . . . . . . . Martial Activations . | . . . . . . . . . . . . . . . . . Shielding Activations . | . . . . . . . . . . . . . . . . . Robots Disrupted . | . . . . . . . . . . . . . . . . . Combat Hostiles . | . . . . . . . . . . . . . . . . . Robots Corrupted 4 | . . . . . . . . . . . 1 . . . . 3 Combat Hostiles 2 | . . . . . . . . . . . . . . . . 2 Parts Fried 13 | . . . . . . . . . . . 5 . . . . 8 Impact Corruptions 14 | . . . . . . . . . . . 1 . . . . 13 Robots Melted 7 | . . . . . . 1 . 1 . . 1 1 1 . . 2 Combat Hostiles 4 | . . . . . . 1 . . . . 1 1 . . . 1 Parts Melted 40 | . . . . . . 5 4 . . . 17 4 1 . . 9 Heat Transferred 19694 | 111 185 259 . . . 2856 1675 695 . 425 7164 722 500 . . 5102 Parts Sabotaged . | . . . . . . . . . . . . . . . . . Parts Stolen . | . . . . . . . . . . . . . . . . . Parts Stripped . | . . . . . . . . . . . . . . . . . Power Chain Reactions 9 | . . . . . . . . . . . 6 . 1 . . 2 Alert | -11 -10 -10 -10 -9 -9 -6 -6 -6 -6 -5 -5 -5 -5 -5 -4 -4 ------- Run | Yrd Mat Min Sub Rec Scr Fac Low Low Zio Pro Fac Upp Upp War Pro Fac Maximum Alert Level 5 | . . . . . . 2 . . . . 5 . . . . 4 Low Security (%) 32 | 100 100 100 . 100 . 42 . . . . . . . . . 30 Level 1 15 | . . . . . . 51 . . . . 6 . . . . 6 Level 2 24 | . . . . . . 6 . . . . 53 . . . . 17 Level 3 16 | . . . . . . . . . . . 12 . . . . 40 Level 4 6 | . . . . . . . . . . . 14 . . . . 5 Level 5 2 | . . . . . . . . . . . 7 . . . . . High Security 1 | . . . . . . . . . . . 4 . . . . . Max Security . | . . . . . . . . . . . . . . . . . Peak Influence 2402 | 15 135 125 . 15 . 416 . . . . 2402 . . . . 1138 Initial 500 | . . 40 . 9 . . . . . . 500 . . . . . Average 517 | 3 34 81 . 3 . 195 . . . . 885 . . . . 564 Influence Increases 8021 | 25 155 165 60 15 . 867 210 227 . 210 3259 315 115 127 143 2128 Destroy 0b10 Robot/C 3600 | . 120 120 . . . 440 180 120 . 120 1320 180 100 80 80 740 Destroy 0b10 Robot/NC 395 | 25 . . . . . 15 . 5 . 10 105 5 5 . 10 215 Destroy Leader 600 | . 20 30 . . . 112 30 30 . 20 188 10 10 . 10 140 Allied During Kill 565 | . . . . . . 45 . 72 . 60 247 . . 32 43 66 Successful Hack 32 | . . . . . . 2 . . . . 16 . . . . 14 Disable Machine 465 | . . . . . . . . . . . 255 . . . . 210 Anti-Garrison Action 200 | . . . . . . 200 . . . . . . . . . . Destroy Structure 889 | . . . . . . 53 . . . . 378 . . . . 458 Advance Influence 450 | . . . . . . . . . . . 450 . . . . . Partial Spotted 60 | . . . . . . . . . . . 15 . . . . 45 Lose Combat Pursuer 765 | . 15 15 60 15 . . . . . . 285 120 . 15 . 240 Influence Decreases 6891 | 25 50 195 115 35 . 457 608 180 59 130 942 1306 540 1029 222 998 Entered New Map 2575 | . . 65 39 11 . . 152 3 59 . 30 888 268 981 79 . Time Decay 3246 | 25 50 100 36 24 . 387 416 177 . 130 562 368 262 28 143 538 Search Patrol Dispatched 100 | . . . . . . . . . . . 100 . . . . . Lost Part 580 | . . 30 40 . . 10 40 . . . 130 50 10 . . 270 Lost Ally 390 | . . . . . . 60 . . . . 120 . . 20 . 190 Squads Dispatched 47 | . . . . . . 8 . . . . 20 . . . . 19 Investigation 10 | . . . . . . 4 . . . . 3 . . . . 3 Extermination 8 | . . . . . . 2 . . . . 3 . . . . 3 Reinforcement 19 | . . . . . . 2 . . . . 6 . . . . 11 Assault 4 | . . . . . . . . . . . 2 . . . . 2 Garrison 6 | . . . . . . . . . . . 6 . . . . . Intercept . | . . . . . . . . . . . . . . . . . Searches Triggered 1 | . . . . . . . . . . . 1 . . . . . Construction Impeded 5 | . . . . . . . . . . . 2 . . . . 3 Haulers Reinforced 4 | . . . . . . 1 . . . . 2 . . . . 1 Active Scanning Responses . | . . . . . . . . . . . . . . . . . Cargo Convoy Interrupts 2 | . . . . . . . . . . . 1 . . . . 1 Stealth | -11 -10 -10 -10 -9 -9 -6 -6 -6 -6 -5 -5 -5 -5 -5 -4 -4 --------- Run | Yrd Mat Min Sub Rec Scr Fac Low Low Zio Pro Fac Upp Upp War Pro Fac Distress Signals 9 | . 1 . . . . 1 . . . . 2 . . . . 5 Communications Jammed 57 | . . . . . . . . . . . . . . . . 57 Distress Signals 57 | . . . . . . . . . . . . . . . . 57 Times Spotted 296 | . 10 8 9 1 . 29 10 5 . 7 99 16 5 13 6 78 Peak Tracking Total 13 | . 5 5 6 1 . 4 3 3 . 3 9 7 5 8 4 13 Tactical Retreats 31 | . 1 1 1 1 . . . . . . 12 3 . 1 . 11 Traps | -11 -10 -10 -10 -9 -9 -6 -6 -6 -6 -5 -5 -5 -5 -5 -4 -4 ------- Run | Yrd Mat Min Sub Rec Scr Fac Low Low Zio Pro Fac Upp Upp War Pro Fac Traps Triggered 10 | . . . . . . 2 . . . . 6 . . . . 2 Indirectly 2 | . . . . . . 2 . . . . . . . . . . Trap Hack Attempts . | . . . . . . . . . . . . . . . . . Triggered . | . . . . . . . . . . . . . . . . . Disarmed . | . . . . . . . . . . . . . . . . . Reprogrammed . | . . . . . . . . . . . . . . . . . Reused . | . . . . . . . . . . . . . . . . . Traps Extracted . | . . . . . . . . . . . . . . . . . Installed . | . . . . . . . . . . . . . . . . . Triggered . | . . . . . . . . . . . . . . . . . Machines | -11 -10 -10 -10 -9 -9 -6 -6 -6 -6 -5 -5 -5 -5 -5 -4 -4 ---------- Run | Yrd Mat Min Sub Rec Scr Fac Low Low Zio Pro Fac Upp Upp War Pro Fac Machines Disabled 32 | . . . . . . . . . . . 17 . . . . 15 Max in Single Turn 6 | . . . . . . . . . . . 5 . . . . 6 Garrison Access 1 | . . . . . . 1 . . . . . . . . . . Machines Repaired . | . . . . . . . . . . . . . . . . . Machines Dismantled . | . . . . . . . . . . . . . . . . . Machines Sabotaged . | . . . . . . . . . . . . . . . . . Overloaded Fab Kills . | . . . . . . . . . . . . . . . . . Hacking | -11 -10 -10 -10 -9 -9 -6 -6 -6 -6 -5 -5 -5 -5 -5 -4 -4 --------- Run | Yrd Mat Min Sub Rec Scr Fac Low Low Zio Pro Fac Upp Upp War Pro Fac Machines Accessed 25 | . . . . . 1 8 1 . . . 5 2 . 4 . 4 Terminals 4 | . . . . . . 2 . . . . 1 . . . . 1 Fabricators 4 | . . . . . . 1 . . . . 3 . . . . . Repair Stations 1 | . . . . . . . . . . . . . . . . 1 Recycling Units 6 | . . . . . . 3 . . . . 1 . . . . 2 Scanalyzers 1 | . . . . . . 1 . . . . . . . . . . Garrison Access 1 | . . . . . . 1 . . . . . . . . . . Total Hacks 45 | . . . . . 2 11 1 . . . 9 6 . 8 . 8 Successful 29 | . . . . . 2 6 1 . . . 3 6 . 8 . 3 Failed 16 | . . . . . . 5 . . . . 6 . . . . 5 Catastrophic 5 | . . . . . . 2 . . . . 2 . . . . 1 Database Lockouts . | . . . . . . . . . . . . . . . . . Manual 20 | . . . . . . 9 . . . . 7 . . . . 4 Terminals 7 | . . . . . . 2 . . . . 3 . . . . 2 Fabricators 6 | . . . . . . 1 . . . . 5 . . . . . Repair Stations 3 | . . . . . . . . . . . . . . . . 3 Recycling Units 8 | . . . . . . 4 . . . . 1 . . . . 3 Scanalyzers 2 | . . . . . . 2 . . . . . . . . . . Garrison Access 2 | . . . . . . 2 . . . . . . . . . . Terminal Hacks 18 | . . . . . 2 . 1 . . . . 6 . 8 . 1 Record 13 | . . . . . 1 . . . . . . 5 . 7 . . Open Door 4 | . . . . . 1 . 1 . . . . 1 . 1 . . Locate Traps 1 | . . . . . . . . . . . . . . . . 1 Fabricator Hacks . | . . . . . . . . . . . . . . . . . Repair Station Hacks . | . . . . . . . . . . . . . . . . . Recycling Unit Hacks . | . . . . . . . . . . . . . . . . . Scanalyzer 2 | . . . . . . 2 . . . . . . . . . . Retrieve Study 2 | . . . . . . 2 . . . . . . . . . . Garrison Access Hacks . | . . . . . . . . . . . . . . . . . Unauthorized Hacks 9 | . . . . . . 4 . . . . 3 . . . . 2 Terminals 1 | . . . . . . . . . . . 1 . . . . . Botnet 1 | . . . . . . . . . . . 1 . . . . . Fabricators 1 | . . . . . . . . . . . 1 . . . . . Fabnet 1 | . . . . . . . . . . . 1 . . . . . Repair Stations . | . . . . . . . . . . . . . . . . . Recycling Units 6 | . . . . . . 3 . . . . 1 . . . . 2 Fedlink 3 | . . . . . . 2 . . . . . . . . . 1 Scrapoids 3 | . . . . . . 1 . . . . 1 . . . . 1 Scanalyzers . | . . . . . . . . . . . . . . . . . Garrison Access 1 | . . . . . . 1 . . . . . . . . . . Jam 1 | . . . . . . 1 . . . . . . . . . . Data Cores Recovered 2 | . . . . . . 1 . . . . . . . . . 1 Used . | . . . . . . . . . . . . . . . . . Hacking Detections 12 | . . . . . . 6 . . . . 4 . . . . 2 Full Trace Events 2 | . . . . . . . . . . . 1 . . . . 1 Feedback Events . | . . . . . . . . . . . . . . . . . Feedback Blocked . | . . . . . . . . . . . . . . . . . Robot Schematics Acquired . | . . . . . . . . . . . . . . . . . Robots Built . | . . . . . . . . . . . . . . . . . Authchips . | . . . . . . . . . . . . . . . . . Time . | . . . . . . . . . . . . . . . . . Total Robot Build Rating . | . . . . . . . . . . . . . . . . . Part Schematics Acquired . | . . . . . . . . . . . . . . . . . Parts Built . | . . . . . . . . . . . . . . . . . Authchips . | . . . . . . . . . . . . . . . . . Time . | . . . . . . . . . . . . . . . . . Total Part Build Rating . | . . . . . . . . . . . . . . . . . Part Studies Acquired 2 | . . . . . . 2 . . . . . . . . . . Parts Repaired . | . . . . . . . . . . . . . . . . . Time . | . . . . . . . . . . . . . . . . . Parts Recycled . | . . . . . . . . . . . . . . . . . Recycled Matter . | . . . . . . . . . . . . . . . . . Retrieved Matter . | . . . . . . . . . . . . . . . . . Retrieved Components . | . . . . . . . . . . . . . . . . . Parts Scanalyzed . | . . . . . . . . . . . . . . . . . Part Schematics Acquired . | . . . . . . . . . . . . . . . . . Parts Damaged . | . . . . . . . . . . . . . . . . . Bothacking | -11 -10 -10 -10 -9 -9 -6 -6 -6 -6 -5 -5 -5 -5 -5 -4 -4 ------------ Run | Yrd Mat Min Sub Rec Scr Fac Low Low Zio Pro Fac Upp Upp War Pro Fac Used RIF Installer . | . . . . . . . . . . . . . . . . . Robots Hacked . | . . . . . . . . . . . . . . . . . Non-combat . | . . . . . . . . . . . . . . . . . Combat . | . . . . . . . . . . . . . . . . . Robot Hacks Applied . | . . . . . . . . . . . . . . . . . Relay Couplers Released 4 | . . . . . . . . . . . . . . . . 4 Programmers 4 | . . . . . . . . . . . . . . . . 4 Fabnet Peak Effective % . | . . . . . . . . . . . . . . . . . Robots Rewired 5 | . . . . . . . . . . . . . . 5 . . Allies Hacked 4 | . . . . . . 1 . . . . 3 . . . . . Hacks Repelled . | . . . . . . . . . . . . . . . . . Allies | -11 -10 -10 -10 -9 -9 -6 -6 -6 -6 -5 -5 -5 -5 -5 -4 -4 -------- Run | Yrd Mat Min Sub Rec Scr Fac Low Low Zio Pro Fac Upp Upp War Pro Fac Total Allies 26 | . . . . . . 5 . 5 . . 5 . . 5 1 5 Largest Group 5 | . . . . . . 5 . 5 4 4 5 . . 5 5 5 Highest-Rated Group 313 | . . . . . . 140 . 238 188 188 235 . . 257 313 313 Highest-Rated Ally 99 | . . . . . . 28 . 50 47 47 47 . . 68 99 99 Total Orders 2 | . . . . . . . . . . . 1 . . . . 1 GUARD 1 | . . . . . . . . . . . . . . . . 1 RETURN 1 | . . . . . . . . . . . 1 . . . . . Ally Attacks 373 | . . . . . . 62 . 30 . 35 195 . . 12 5 34 Total Damage 8229 | . . . . . . 1047 . 582 . 734 3895 . . 613 174 1184 Kills 65 | . . . . . . 9 . 5 . 6 32 . . 4 3 6 Allies Corrupted 1 | . . . . . . . . . . . 1 . . . . . Allies Melted 1 | . . . . . . . . . . . . . . 1 . . Intel | -11 -10 -10 -10 -9 -9 -6 -6 -6 -6 -5 -5 -5 -5 -5 -4 -4 ------- Run | Yrd Mat Min Sub Rec Scr Fac Low Low Zio Pro Fac Upp Upp War Pro Fac Active Infowar (turns) 2423 | 29 241 200 259 . . . . . . . 33 . . . 471 1190 Optics 1661 | . . . . . . . . . . . . . . . 471 1190 Terrain 729 | 29 241 200 259 . . . . . . . . . . . . . Jamming 256 | . . . . . . . . . . . 33 . . . . 223 Robot Analysis Total . | . . . . . . . . . . . . . . . . . Derelict Logs Recovered 12 | . . . . . 2 . 1 2 1 1 . 2 1 . 2 . Drone Launches 7 | . . . . . . . . . . . 1 . . . . 6 Drone Recoveries 4 | . . . . . . . . . . . 1 . . . . 3 Exploration | -11 -10 -10 -10 -9 -9 -6 -6 -6 -6 -5 -5 -5 -5 -5 -4 -4 ------------- Run | Yrd Mat Min Sub Rec Scr Fac Low Low Zio Pro Fac Upp Upp War Pro Fac Turns Passed 11460 | 114 241 200 260 147 665 1164 1001 602 796 266 1748 855 573 828 480 1520 Spaces Moved 9987 | 72 106 88 194 293 871 889 851 511 760 237 1438 832 583 713 415 1134 Core 1539 | 9 . . 14 293 452 . . . . . 224 . . . . 547 Treads 2 | 2 . . . . . . . . . . . . . . . . Legs 1 | . . . . . . . . . . . 1 . . . . . Wheels 8445 | 61 106 88 180 . 419 889 851 511 760 237 1213 832 583 713 415 587 Hover . | . . . . . . . . . . . . . . . . . Flight . | . . . . . . . . . . . . . . . . . Fastest Speed 50 | 50 100 100 50 50 50 94 90 100 100 100 50 80 90 90 100 50 Average Speed 92 | 95 100 100 96 50 73 102 101 100 100 100 89 83 90 103 107 90 Slowest Speed 1350 | 160 100 100 100 50 100 140 110 110 100 100 180 90 90 110 120 1350 Overloaded Moves . | . . . . . . . . . . . . . . . . . Propulsion Burnouts . | . . . . . . . . . . . . . . . . . Robots Hopped . | . . . . . . . . . . . . . . . . . Potential Cave-ins . | . . . . . . . . . . . . . . . . . Cave-ins Triggered . | . . . . . . . . . . . . . . . . . Exploration Rate (%) 47 | 3 28 27 14 65 56 17 56 58 83 47 38 59 73 89 58 32 Regions Visited 16 Branch Regions 12 Pre-discovered Areas 6 | . . . . . 1 1 . 1 2 . . 1 . . . . Known Exits Taken . | . . . . . . . . . . . . . . . . . Unknown Exits Taken 16 | 1 1 1 1 1 1 1 1 1 1 1 1 1 1 1 1 . Scrap Searched 21 | . . . . . 3 . 2 3 3 1 . 2 3 . 4 . Spaces Dug 102 | . . . . . . 10 . . . . 1 28 . . . 63 Terrain Destroyed 777 | . . . . . . 55 1 . . . 185 139 56 . 35 306 Melee 7 | . . . . . . 4 . . . . . . . . . 3 Projectile 59 | . . . . . . 2 1 . . . 11 3 3 . . 39 AOE 711 | . . . . . . 49 . . . . 174 136 53 . 35 264 Terrain Rammed . | . . . . . . . . . . . . . . . . . Walls Destroyed . | . . . . . . . . . . . . . . . . . Machines Disabled . | . . . . . . . . . . . . . . . . . Actions | -11 -10 -10 -10 -9 -9 -6 -6 -6 -6 -5 -5 -5 -5 -5 -4 -4 --------- Run | Yrd Mat Min Sub Rec Scr Fac Low Low Zio Pro Fac Upp Upp War Pro Fac Total 11530 | 99 216 157 255 292 892 1067 939 574 797 249 1723 971 615 806 446 1432 Wait 671 | 11 98 40 43 . 6 48 37 30 25 5 93 112 13 24 27 59 Move 9971 | 71 105 87 193 292 870 888 850 510 759 236 1437 831 582 712 414 1134 Hop . | . . . . . . . . . . . . . . . . . Pick Up 87 | 1 . 2 4 . 10 19 5 2 1 . 19 1 . 1 1 21 Fast Attach 100 | 8 . . . . 3 13 2 3 2 . 23 5 2 7 3 29 Attach 68 | . . 2 1 . . 15 4 2 . . 12 1 1 . . 30 Detach 27 | 1 . . 1 . 1 3 . . . . 1 . 2 . . 18 Swap 43 | . 1 . 1 . . 9 1 1 3 . 13 2 1 1 . 10 Drop 104 | . . . 3 . 2 19 5 5 7 2 33 2 . 6 . 20 Fire 349 | 7 12 26 9 . . 48 35 21 . 6 73 17 14 . 1 80 Melee 31 | . . . . . . 5 . . . . 8 . . . . 18 Ram 3 | . . . . . . . . . . . 1 . . . . 2 Kick . | . . . . . . . . . . . . . . . . . Crush . | . . . . . . . . . . . . . . . . . Escape Stasis 19 | . . . . . . . . . . . 8 . . . . 11 Rewire 57 | . . . . . . . . . . . 2 . . 55 . . Trap . | . . . . . . . . . . . . . . . . . Miscellaneous . | . . . . . . . . . . . . . . . . . Route ------- -11/Scrapyard -10/Materials -10/Mines -10/Subcaves (discovered 3 exits: [*Mat x2] / [*Rec]) -9/Recycling -9/Scraptown -6/Factory -6/Lower Caves -6/Lower Caves -6/Zion -5/Proximity Caves -5/Factory -5/Upper Caves -5/Upper Caves -5/Warlord -4/Proximity Caves -4/Factory (discovered 1 exit: [*Upp]) History --------- Turn | Location | Event 35 | -11/Scrapyard | Discovered new exit (range 16) 115 | -11/Scrapyard | Entered Materials 306 | -10/Materials | Build established: Mutant 351 | -10/Materials | Discovered new exit (range 6) 356 | -10/Materials | Entered Mines 455 | -10/Mines | Core integrity fell below 50% 548 | -10/Mines | Discovered new exit (range 4) 556 | -10/Mines | Entered Subcaves 557 | -10/Subcaves | Approached by a straggling Scientist 606 | -10/Subcaves | Discovered new exit (range 7) 706 | -10/Subcaves | Shifting Twisted Machinery released Sub. Shrapnel Launcher 713 | -10/Subcaves | Discovered new exit (range 3) 715 | -10/Subcaves | Shifting Twisted Machinery released Sub. Beam Cannon 811 | -10/Subcaves | Discovered new exit (range 11) 815 | -10/Subcaves | Core integrity fell below 20% 816 | -10/Subcaves | Entered Recycling 846 | -9/Recycling | Lost 3 parts (2n1u) 951 | -9/Recycling | Scanned before Scraplab entrance 958 | -9/Recycling | Entered Scraplab 962 | -9/Recycling | Discovered new exit (range 2) 963 | -9/Recycling | Entered Scraptown 1008 | -9/Scraptown | Visited Awakened 1016 | -9/Scraptown | Visited Assassins FH 1024 | -9/Scraptown | Visited UFD Registry 1024 | -9/Scraptown | Registered with UFD as "Autotorch" 1068 | -9/Scraptown | Guru changed UFD alias to "Fissionnuts" 1096 | -9/Scraptown | Scanned Subdweller tech in exchange for log data 1097 | -9/Scraptown | Learned Research security intel 1098 | -9/Scraptown | Learned location of Testing (-3) 1135 | -9/Scraptown | Visited Science Guys 1144 | -9/Scraptown | Visited Junk Repository 1158 | -9/Scraptown | Visited Sword Containment 1168 | -9/Scraptown | Found Prototype Slashing Weapon 1168 | -9/Scraptown | Identified Companion Sword 1292 | -9/Scraptown | Visited Scrapoid Pod Storage 1296 | -9/Scraptown | Found Scrapoid Pod 1331 | -9/Scraptown | Visited Scrap Suit Storage 1335 | -9/Scraptown | Found Scrap Suit 1359 | -9/Scraptown | Visited Curators Association 1376 | -9/Scraptown | Visited Derelict Rescue Squad 1382 | -9/Scraptown | Found DRS Beacon 1427 | -9/Scraptown | Visited Scrapoid Research Area 1572 | -9/Scraptown | Met Optimus 1572 | -9/Scraptown | Accepted into 0bPrime 1624 | -9/Scraptown | Discovered new exit (range 5) 1628 | -9/Scraptown | Entered Factory 1628 | -6/Factory | Evolved 8 slots: Utility x4, Weapon x4 1674 | -6/Factory | Scrapoids reinforcements arrived? 1728 | -6/Factory | Attached CPS modules to 06F05-D. 1730 | -6/Factory | Attached CPS modules to 06F04-D. 1733 | -6/Factory | Attached CPS modules to 06F06-D. 1735 | -6/Factory | Attached CPS modules to 06F07-D. 1821 | -6/Factory | Found Scrap Suit 2158 | -6/Factory | Build established: Scavenger-Scrapper 2170 | -6/Factory | Found Scrap Suit 2501 | -6/Factory | Loaded intel: 7 recycling unit locations 2701 | -6/Factory | Learned location of Protoforge (-2) 2717 | -6/Factory | Discovered new exit (range 15) 2792 | -6/Factory | Entered Lower Caves 2857 | -6/Lower Caves | Learned Factory garrison access intel 3186 | -6/Lower Caves | Found Prototype Device 3656 | -6/Lower Caves | Murdered Warlord Statue 3746 | -6/Lower Caves | Discovered new exit (range 10) 3793 | -6/Lower Caves | Entered another Lower Caves area 3839 | -6/Lower Caves | Scrapoid Pod released 06L12-D (x5) 3889 | -6/Lower Caves | Learned location of Zion (-6) 3890 | -6/Lower Caves | Learned 4 Factory zone layouts 4338 | -6/Lower Caves | P-60 Hacker assimilated allied 06L11-D 4359 | -6/Lower Caves | Found Scrap Suit 4382 | -6/Lower Caves | Discovered new exit (range 9) 4395 | -6/Lower Caves | Entered Zion 4395 | -6/Zion | Accompanied by 4 allies 4515 | -6/Zion | Discovered new exit (range 13) 4627 | -6/Zion | Learned location of Armory (-4) 4649 | -6/Zion | Found Prototype Energy Gun 4649 | -6/Zion | Identified Storm Laser 5011 | -6/Zion | Given the Hacking Drone Bay 5012 | -6/Zion | Found Prototype Device 5068 | -6/Zion | Learned Factory emergency access door positions 5188 | -6/Zion | Identified Hacking Drone Bay 5191 | -6/Zion | Entered Proximity Caves 5191 | -5/Proximity Caves | Accompanied by 4 allies 5272 | -5/Proximity Caves | Spotter reported a threat 5290 | -5/Proximity Caves | Spotter reported a threat 5354 | -5/Proximity Caves | Spotter reported a threat 5426 | -5/Proximity Caves | Learned Factory security intel 5435 | -5/Proximity Caves | Discovered new exit (range 15) 5457 | -5/Proximity Caves | Entered Factory 5457 | -5/Factory | Accompanied by 4 allies 5457 | -5/Factory | Evolved 2 slots: Utility x2 5461 | -5/Factory | Loaded intel: 4 garrison access locations 5757 | -5/Factory | Search patrols dispatched 5964 | -5/Factory | Lost 3 allies 5998 | -5/Factory | Garrison activated, responded to threat 6112 | -5/Factory | Build established: Scavenger-Executioner 6300 | -5/Factory | Found Prototype Launcher 6300 | -5/Factory | Identified Tesla Bomb Launcher 6555 | -5/Factory | Destroyed 7 combat bots 6575 | -5/Factory | Garrison activated, responded to threat 6582 | -5/Factory | Cargo convoy interrupted 6586 | -5/Factory | Released all parts (10) 6617 | -5/Factory | Lost 4 parts (1p1u2w) 6657 | -5/Factory | First assault squad dispatched 6682 | -5/Factory | Core integrity fell below 50% 6728 | -5/Factory | Scrapoids reinforcements arrived? 6737 | -5/Factory | Found Scrap Suit 6792 | -5/Factory | Found Scrap Suit 6990 | -5/Factory | Found Prototype Launcher 6990 | -5/Factory | Identified Com. Tesla Bomb Launcher 7014 | -5/Factory | Found Prototype Device 7014 | -5/Factory | Identified Exp. Transmission Jammer 7075 | -5/Factory | Found Exp. Transmission Jammer 7080 | -5/Factory | Identified Heart of Steel 7101 | -5/Factory | Build established: Scavenger-Scrapper 7123 | -5/Factory | High security lockdown imminent 7138 | -5/Factory | Found Prototype Device 7142 | -5/Factory | Found Com. Tesla Bomb Launcher 7195 | -5/Factory | Discovered new exit (range 13) 7203 | -5/Factory | High security lockdown engaged 7205 | -5/Factory | Entered Upper Caves 7239 | -5/Upper Caves | Lost 3 parts (1p2w) 7445 | -5/Upper Caves | Identified Exp. Actuator Array 7657 | -5/Upper Caves | Build established: Scavenger-Mutant 7807 | -5/Upper Caves | Attracted the attention of an 0b10 checkpoint 7890 | -5/Upper Caves | Entered an active Warlord outpost 7894 | -5/Upper Caves | Learned Factory terminal intel 7927 | -5/Upper Caves | Learned Extension trap positions 8047 | -5/Upper Caves | Discovered new exit (range 15) 8060 | -5/Upper Caves | Entered another Upper Caves area 8487 | -5/Upper Caves | Learned Factory stockpile data 8614 | -5/Upper Caves | Discovered new exit (range 8) 8633 | -5/Upper Caves | Entered Warlord 8663 | -5/Warlord | System corruption cleaned by Quarantine Array 8727 | -5/Warlord | Found Prototype Device 8727 | -5/Warlord | Identified Minesniffer Drone Bay 8855 | -5/Warlord | Visited the Vortex Lab 8864 | -5/Warlord | Found Prototype Launcher 8864 | -5/Warlord | Identified Vortex Catalyst Activator 8867 | -5/Warlord | Found Prototype Energy Gun 8867 | -5/Warlord | Identified Vortex Rifle 8869 | -5/Warlord | Found Vortex Rifle 8872 | -5/Warlord | Warlord's base attacked by MAIN.C 8876 | -5/Warlord | Found Prototype Energy Gun 8876 | -5/Warlord | Identified Vortex Rail 8879 | -5/Warlord | Found Vortex Rail 9097 | -5/Warlord | Learned Factory repair station intel 9097 | -5/Warlord | Learned Armory garrison access intel 9097 | -5/Warlord | Learned Research scanalyzer intel 9098 | -5/Warlord | Learned 4 Access zone layouts 9098 | -5/Warlord | Learned 4 Quarantine zone layouts 9099 | -5/Warlord | Learned Research stockpile data 9147 | -5/Warlord | Build established: Scavenger-Executioner 9212 | -5/Warlord | Rebuked by Warlord 9222 | -5/Warlord | Warlord forces counterattacked 9374 | -5/Warlord | Spotted Executioner 9423 | -5/Warlord | Spotted Executioner 9430 | -5/Warlord | Discovered new exit (range 14) 9461 | -5/Warlord | Entered Proximity Caves 9461 | -4/Proximity Caves | Accompanied by 4 allies 9463 | -4/Proximity Caves | Heart of Steel transformed into Warbot 9480 | -4/Proximity Caves | Lost 11 allies 9709 | -4/Proximity Caves | Learned Research trap positions 9759 | -4/Proximity Caves | Received a Behemoth hack from an annoying Tinkerer 9763 | -4/Proximity Caves | Learned 4 Research zone layouts 9874 | -4/Proximity Caves | Discovered new exit (range 13) 9941 | -4/Proximity Caves | Entered Factory 9941 | -4/Factory | Accompanied by 5 allies (Warbot) 9941 | -4/Factory | Evolved 2 slots: Power x1, Utility x1 9943 | -4/Factory | Loaded intel: 28 terminal locations 9944 | -4/Factory | Loaded intel: 5 repair station locations 10327 | -4/Factory | Loaded intel: 8 recycling unit locations 10430 | -4/Factory | Lost 3 parts (1p2w) 10691 | -4/Factory | First assault squad dispatched 10704 | -4/Factory | Spotted B-86 Titan 10715 | -4/Factory | Destroyed B-86 Titan 10898 | -4/Factory | Lost 10 parts (1p3n1u5w) 11044 | -4/Factory | Scrapoids reinforcements arrived? 11045 | -4/Factory | Cargo convoy interrupted 11079 | -4/Factory | Released all parts (13) 11083 | -4/Factory | Lost 5 allies 11102 | -4/Factory | Lost 6 parts (1p1n1u3w) 11143 | -4/Factory | Core integrity fell below 50% 11262 | -4/Factory | System corruption reached 10% 11274 | -4/Factory | Core integrity fell below 20% 11371 | -4/Factory | Build established: Mutant 11460 | -4/Factory | Discovered new exit (range 7) 11461 | -4/Factory | Destroyed by H-71 Marshal with Heavy Mass Driver Last Messages --------------- 11393_ K-01 Serf cleans the Terminal. 11426_ Sneak attack on O-32 Director. 11426_ O-32 Director suffers critical hit (Smash). 11426_ Destroyed Imp. Hacking Suite. 11426_ Destroyed Gravmag System. 11426_ O-32 Director system corrupted by crushing effect. 11426_ O-32 Director knocked back. 11427_ O-32 Director system terminally corrupted. 11429_ Acquired 31 matter. 11438_ System corrupted: Heat flow error (+181). 11438_ ALERT: Suspicious intruders detected, dispatching Cutter reinforcements to area. 11441_ ALERT: Unidentified disturbance in Zone 9S, assault force dispatched. 11456_ System corrupted: Matter fused (-10). 11460_ EXIT=FOUND 11461_ Penetrated by Slug. Map ----- +----------------------------------------------------+ | ?????????????????????????# """ #?????? | | ?????????????????????????# """"" #?????? | | ?????????????????????????# """"" #?????? | | ?????????????????????????# #?????? | | ?????????????????????????# #?????? | | ???????????????????????"?+ #?????? | | ???????????????????????T?# #?????? | | ???????????????????????"?## # #?????? | | ??????????????????????????# ###### #### #?? "? | | ??????????????????????????#??????# #??# #?? "? | | ?????????????????????????????????# #??# #? | | ???????????????????????????????###+#### #? "" | | ???????????????????????????????# =# # "" | | ???????????????????????????????# # # "" | | ???????????????????????????????# # # | | ???????????????????????????????# = # # | | ???????????????????????????????# # # ? | | ???????????????????????????????# ]# # ?? | | ???????????????????????????????#######" #### | | ?????????????????????????????????????# | | ????????????????????#######= ######## """ | | ????????????????????# ! % " " | | ????????????????????# ### ##?###### " " | | ????????????????????# ####+#####????# " | | ????????????????????# + #????## # | | ????????????????????# ###@ #?????### # ! | | ????????????????????# #?# #???????# #?! | | ????????????????????# #?# ######### #?##### | | ????????????????????# #?# H ## # #???# " | | ????????????????????# #?# ##""" ! # ##### " | | ????????????????????# #?# ##""" / #? | | ????????????????????# #?# ##""" # #??? | | ????????????????????# #?# ## # #??? | | ????????????????????# #?########### ! # #??? | | ????????????????????# #???????????######## #??? | | ????????????????????# #################### #### | | ????????????????????# | | ????????????????????############################## | | ?????????????????????????????????????????????????? | | ?????????????????????????????????????????????????? | | ?????????????????????????????????????????????????? | | ?????????????????????????????????????????????????? | | | | | | | | | | | | | | | | | +----------------------------------------------------+ Best States ------------- Heat Dissipation 116 Coolant Potential 220 Energy Generation 34 Energy Capacity 525 Matter Stores 300 Matter Capacity 300 Sight Range 22 Terrain Scan Range 16 Terrain Scan Density 110 Jamming Range 22 Base Temperature (-) 150 Evasion (%) 50 Targeting Accuracy 8 Target Analysis 6 Recoil Reduction 1 Salvage Targeting 4 Offensive Hacking 14 Defensive Hacking 10 Item Schematics ----------------- None Robot Schematics ------------------ None Fabricated ------------ Nothing Repaired ---------- Nothing Studied --------- Wheel | -6/Factory | Hacked Mni. Grenade Launcher | -6/Factory | Hacked Alien Tech Used ----------------- None Achievements -------------- About That Survey... Challenges ------------ None Game ------ Seed SuperdenseNovaCyclogen Manual? 0 Play Time 01:44:21 Cumulative 418.8 hours Start 2025.11.19 @ 11:15:09 End 2025.11.20 @ 00:17:09 Sessions 3 Manual Loads 0 Difficulty Rogue Special Mode None Game No. 387 Rogue 387 Adventurer 0 Explorer 0 Win Type - Total 3 Types 2/1/0/0/0/0/0/0/0/0 Lore% 85 Gallery% 84 Achievement% 64 Wizard Run 0 Options --------- Layout 1 ASCII 0 Keyboard 0 Movement Numpad Keybinds 0 Fullscreen 1 Font 24/Smallcaps Map View 50x35 Zoom Use 0% Tactical HUD 1 Map Filters NONE Filters NONE Steam 1 RUN: c4cacdc8-e971-4108-8390-6ee2d1ed86cb